fUST/lending_fUST_20241106
["ID","MTS","AMOUNT","RATE_DAILY","PERIOD"]
[341382008,1730862637496,-323.895715,0.00026109,2]
[341382009,1730862637505,-323.895715,0.00026116,2]
[341382011,1730862637522,-247.63871412,0.00026167,2]
[341382013,1730862637532,-250.0,0.00026283,2]
[341382015,1730862637542,-247.63871412,0.00026435,2]
[341382017,1730862637552,-1901.22079462,0.00026534,2]
[341382019,1730862637563,-3000.0,0.00026535,2]
[341382021,1730862637573,-500.0,0.00026804,2]
[341382023,1730862637582,-500.0,0.00026804,2]
[341382025,1730862637591,-500.0,0.00026804,2]
[341382027,1730862637602,-389.62952712,0.00026804,2]
[341382029,1730862637612,-500.0,0.00026804,2]
[341382031,1730862637622,-500.0,0.00026804,2]
[341382033,1730862637631,-500.0,0.00026804,2]
[341382036,1730862637642,-500.0,0.00026804,2]
[341382037,1730862637651,-500.0,0.00026804,2]
[341382039,1730862637660,-500.0,0.00026804,2]
[341382042,1730862637670,-500.0,0.00026804,2]
[341382044,1730862637679,-500.0,0.00026804,2]
[341382046,1730862637689,-500.0,0.00026804,2]
[341382048,1730862637699,-500.0,0.00026804,2]
[341382050,1730862637708,-500.0,0.00026804,2]
[341382052,1730862637717,-500.0,0.00026804,2]
[341382054,1730862637726,-500.0,0.00026804,2]
[341382056,1730862637736,-500.0,0.00026804,2]
[341382058,1730862637745,-500.0,0.00026804,2]
[341382060,1730862637755,-500.0,0.00026804,2]
[341382062,1730862637764,-204.19351603,0.00026804,2]
[341382064,1730862637780,-500.0,0.00026804,2]
[341382066,1730862637792,-500.0,0.00026804,2]
[341382068,1730862637801,-500.0,0.00026804,2]
[341382070,1730862637811,-500.0,0.00026804,2]
[341382072,1730862637823,-500.0,0.00026804,2]
[341382074,1730862637833,-500.0,0.00026804,2]
[341382076,1730862637842,-500.0,0.00026804,2]
[341382078,1730862637851,-500.0,0.00026804,2]
[341382080,1730862637862,-179.12092619,0.00026804,2]
[341382082,1730862637871,-378.80941841,0.00026804,2]
[341382084,1730862637881,-500.0,0.00026804,2]
[341382086,1730862637892,-500.0,0.00026804,2]
[341382089,1730862637902,-475.14351019,0.00026804,2]
[341382092,1730862637912,-500.0,0.00026804,2]
[341382095,1730862637921,-500.0,0.00026804,2]
[341382098,1730862637931,-500.0,0.00026804,2]
[341382100,1730862637940,-500.0,0.00026804,2]
[341382102,1730862637951,-500.0,0.00026804,2]
[341382104,1730862637960,-500.0,0.00026804,2]
[341382105,1730862637970,-500.0,0.00026804,2]
[341382107,1730862637979,-500.0,0.00026804,2]
[341382109,1730862637988,-500.0,0.00026804,2]
[341382111,1730862637998,-500.0,0.00026804,2]
[341382113,1730862638008,-500.0,0.00026804,2]
[341382114,1730862638021,-114.86041852,0.00026804,2]
[341382117,1730862638035,-378.16062588,0.00026804,2]
[341382120,1730862638046,-500.0,0.00026804,2]
[341382123,1730862638056,-500.0,0.00026804,2]
[341382126,1730862638065,-500.0,0.00026804,2]
[341382129,1730862638075,-500.0,0.00026804,2]
[341382131,1730862638084,-500.0,0.00026804,2]
[341382135,1730862638094,-500.0,0.00026804,2]
[341382147,1730862638103,-500.0,0.00026804,2]
[341382149,1730862638200,-536.58907819,0.00026804,2]
[341382151,1730862638209,-500.0,0.00026804,2]
[341382152,1730862638219,-500.0,0.00026804,2]
[341382154,1730862638229,-596.22571196,0.00026804,2]
[341382156,1730862638238,-500.0,0.00026804,2]
[341382158,1730862638248,-500.0,0.00026804,2]
[341382160,1730862638257,-500.0,0.00026804,2]
[341382161,1730862638272,-500.0,0.00026804,2]
[341382163,1730862638282,-500.0,0.00026804,2]
[341382165,1730862638292,-500.0,0.00026804,2]
[341382167,1730862638305,-450.0,0.00026804,2]
[341382168,1730862638314,-259.41419173,0.00026804,2]
[341382170,1730862638324,-500.0,0.00026804,2]
[341382172,1730862638334,-500.0,0.00026804,2]
[341382174,1730862638343,-500.0,0.00026804,2]
[341382175,1730862638353,-500.0,0.00026804,2]
[341382177,1730862638362,-500.0,0.00026804,2]
[341382179,1730862638371,-500.0,0.00026804,2]
[341382181,1730862638381,-500.0,0.00026804,2]
[341382183,1730862638391,-500.0,0.00026804,2]
[341382185,1730862638401,-500.0,0.00026804,2]
[341382186,1730862638410,-500.0,0.00026804,2]
[341382188,1730862638419,-500.0,0.00026804,2]
[341382190,1730862638430,-500.0,0.00026804,2]
[341382192,1730862638440,-500.0,0.00026804,2]
[341382193,1730862638449,-500.0,0.00026804,2]
[341382195,1730862638459,-500.0,0.00026804,2]
[341382197,1730862638469,-500.0,0.00026804,2]
[341382199,1730862638478,-500.0,0.00026804,2]
[341382200,1730862638488,-500.0,0.00026804,2]
[341382202,1730862638498,-500.0,0.00026804,2]
[341382204,1730862638507,-387.44205547,0.00026804,2]
[341382206,1730862638527,-112.55794453,0.00026804,2]
[341382208,1730862638537,-500.0,0.00026804,2]
[341382210,1730862638546,-500.0,0.00026804,2]
[341382212,1730862638556,-500.0,0.00026804,2]
[341382213,1730862638565,-500.0,0.00026804,2]
[341382215,1730862638575,-500.0,0.00026804,2]
[341382217,1730862638585,-500.0,0.00026804,2]
[341382219,1730862638594,-500.0,0.00026804,2]
[341382220,1730862638604,-500.0,0.00026804,2]
[341382222,1730862638613,-500.0,0.00026804,2]
[341382224,1730862638623,-500.0,0.00026804,2]
[341382226,1730862638632,-500.0,0.00026804,2]
[341382227,1730862638641,-500.0,0.00026804,2]
[341382229,1730862638650,-500.0,0.00026804,2]
[341382231,1730862638659,-500.0,0.00026804,2]
[341382233,1730862638669,-500.0,0.00026804,2]
[341382235,1730862638678,-500.0,0.00026804,2]
[341382236,1730862638687,-500.0,0.00026804,2]
[341382238,1730862638696,-500.0,0.00026804,2]
[341382240,1730862638706,-500.0,0.00026804,2]
[341382242,1730862638716,-500.0,0.00026804,2]
[341382244,1730862638725,-500.0,0.00026804,2]
[341382246,1730862638734,-500.0,0.00026804,2]
[341382247,1730862638743,-500.0,0.00026804,2]
[341382249,1730862638753,-500.0,0.00026804,2]
[341382251,1730862638762,-500.0,0.00026804,2]
[341382253,1730862638778,-500.0,0.00026804,2]
[341382255,1730862638787,-500.0,0.00026804,2]
[341382257,1730862638800,-500.0,0.00026804,2]
[341382259,1730862638810,-500.0,0.00026804,2]
[341382260,1730862638819,-500.0,0.00026804,2]
[341382262,1730862638828,-6067.5196787,0.00026805,2]
[341382264,1730862638839,-939.0645144,0.00026979,2]
[341382266,1730862638848,-455.08,0.00027,2]
[341382268,1730862638858,-407.2546832,0.00027068,2]
[341382270,1730862638868,-173.934109,0.00027152,2]
[341382272,1730862638877,-420.0,0.00028245,2]
[341382273,1730862638889,-3759.46760495,0.00028599,2]
[341382275,1730862638899,-385.0408634,0.00028599,2]
[341382277,1730862638909,-485.57,0.00028689,3]
[341382279,1730862638918,-242.78,0.00028689,3]
[341382281,1730862638927,-728.37,0.00028689,3]
[341382283,1730862638936,-500.0,0.00028698,2]
[341382284,1730862638945,-500.0,0.00028698,2]
[341382286,1730862638954,-444.64099781,0.00028698,2]
[341382288,1730862638964,-227.09485787,0.00028698,2]
[341382290,1730862638973,-679.48189919,0.00028699,2]
[341382292,1730862638982,-3000.0,0.000287,2]
[341382294,1730862638991,-3000.0,0.0002871,2]
[341382296,1730862639000,-588.7,0.00028718,3]
[341382297,1730862639009,-294.35,0.00028718,3]
[341382299,1730862639024,-883.07,0.00028718,3]
[341382301,1730862639033,-438.26,0.00028718,3]
[341382303,1730862639043,-3000.0,0.0002872,2]
[341382305,1730862639052,-420.0,0.0002872,2]
[341382307,1730862639062,-1705.77,0.0002872,10]
[341382309,1730862639072,-3000.0,0.0002873,2]
[341382310,1730862639081,-1001.28027975,0.00028738,2]
[341382312,1730862639092,-3000.0,0.0002874,2]
[341382314,1730862639102,-2304.303339,0.00028744,2]
[341382316,1730862639113,-181.57466747,0.0002875,2]
[341382318,1730862639126,-2818.42533253,0.0002875,2]
[341382320,1730862639135,-3000.0,0.0002876,2]
[341382322,1730862639145,-3000.0,0.0002877,2]
[341382324,1730862639154,-500.0,0.00028773,5]
[341382326,1730862639164,-160.44963657,0.00028773,5]
[341382327,1730862639174,-500.0,0.00028773,5]
[341382329,1730862639184,-500.89473811,0.00028773,5]
[341382331,1730862639193,-500.0,0.00028773,5]
[341382333,1730862639203,-500.0,0.00028773,5]
[341382335,1730862639214,-500.0,0.00028773,5]
[341382337,1730862639224,-496.54248582,0.00028773,5]
[341382339,1730862639233,-500.0,0.00028773,5]
[341382341,1730862639243,-503.76821782,0.00028773,5]
[341382343,1730862639252,-321.01283675,0.00028773,5]
[341382344,1730862639263,-500.0,0.00028773,2]
[341382346,1730862639278,-500.0,0.00028773,5]
[341382348,1730862639287,-500.0,0.00028773,5]
[341382350,1730862639297,-3000.0,0.0002878,2]
[341382352,1730862639306,-3000.0,0.0002879,2]
[341382354,1730862639316,-3000.0,0.000288,2]
[341382356,1730862639326,-3000.0,0.0002881,2]
[341382358,1730862639335,-3000.0,0.0002882,2]
[341382360,1730862639344,-3000.0,0.0002883,2]
[341382361,1730862639354,-3000.0,0.0002884,2]
[341382363,1730862639363,-3000.0,0.0002885,2]
[341382365,1730862639373,-3000.0,0.0002886,2]
[341382367,1730862639383,-3000.0,0.0002887,2]
[341382369,1730862639392,-3000.0,0.0002888,2]
[341382371,1730862639402,-3000.0,0.0002889,2]
[341382373,1730862639411,-3000.0,0.000289,2]
[341382375,1730862639421,-3000.0,0.0002891,2]
[341382376,1730862639430,-3000.0,0.0002892,2]
[341382378,1730862639439,-3000.0,0.0002893,2]
[341382380,1730862639449,-3000.0,0.0002894,2]
[341382382,1730862639459,-3000.0,0.0002895,2]
[341382384,1730862639468,-3000.0,0.0002896,2]
[341382386,1730862639478,-3000.0,0.0002897,2]
[341382388,1730862639487,-3000.0,0.0002898,2]
[341382390,1730862639496,-2810.60162187,0.0002899,2]
[341382392,1730862639509,-189.39837813,0.0002899,2]
[341382394,1730862639522,-3000.0,0.00029,2]
[341382396,1730862639531,-455.08,0.00029,2]
[341382398,1730862639542,-3000.0,0.0002901,2]
[341382400,1730862639551,-3000.0,0.0002902,2]
[341382402,1730862639561,-3000.0,0.0002903,2]
[341382403,1730862639571,-3000.0,0.0002904,2]
[341382405,1730862639580,-3000.0,0.0002905,2]
[341382407,1730862639590,-3000.0,0.0002906,2]
[341382409,1730862639600,-3000.0,0.0002907,2]
[341382411,1730862639611,-3000.0,0.0002908,2]
[341382413,1730862639620,-3000.0,0.0002909,2]
[341382415,1730862639630,-3000.0,0.000291,2]
[341382417,1730862639639,-1201.29986627,0.0002911,2]
[341382433,1730862639791,-500.0,0.00026804,2]
[341382435,1730862639802,-1798.70013373,0.0002911,2]
[341382437,1730862639812,-3000.0,0.0002912,2]
[341382439,1730862639825,-3000.0,0.0002913,2]
[341382441,1730862639834,-3000.0,0.0002914,2]
[341382443,1730862639844,-3000.0,0.0002915,2]
[341382445,1730862639854,-3000.0,0.0002916,2]
[341382447,1730862639866,-3588.15286,0.0002917,2]
[341382448,1730862639875,-500.0,0.00029289,5]
[341382450,1730862639886,-500.0,0.00029289,5]
[341382458,1730862639896,-501.18452618,0.00029289,5]
[341382460,1730862639973,-410.49945358,0.00029289,5]
[341382462,1730862639983,-260.71269403,0.00029289,5]
[341382464,1730862639992,-500.0,0.00029289,5]
[341382466,1730862640002,-399.97913515,0.00029289,5]
[341382467,1730862640012,-500.0,0.00029289,2]
[341382471,1730862640025,-294.23331494,0.00029289,5]
[341382475,1730862640034,-385.04086339,0.00029318,2]
[341382479,1730862640044,-168.894963,0.00029324,2]
[341382484,1730862640053,-2304.303339,0.00029429,2]
[341382487,1730862640063,-151.0,0.0003,120]
[341382489,1730862640072,-197.138,0.0003,2]
[341382492,1730862640081,-164.783,0.0003,2]
[341382495,1730862640090,-151.0,0.0003,120]
[341382497,1730862640099,-253.0,0.0003,2]
[341382500,1730862640108,-385.04086339,0.00030036,2]
[341382503,1730862640118,-971.14,0.00030059,3]
[341382506,1730862640127,-485.56,0.00030059,3]
[341382508,1730862640136,-1177.4,0.00030088,3]
[341382511,1730862640146,-588.7,0.00030088,3]
[341382513,1730862640155,-2304.303339,0.00030114,2]
[341382515,1730862640164,-175.9884195,0.00030137,2]
[341382517,1730862640174,-500.0,0.00030137,2]
[341382519,1730862640183,-240.58515899,0.00030137,2]
[341382521,1730862640192,-731.89453888,0.00030142,5]
[341382523,1730862640203,-765.76775811,0.00030142,5]
[341382525,1730862640212,-977.82768596,0.00030142,5]
[341382528,1730862640224,-22.17231404,0.00030142,5]
[341382530,1730862640234,-1000.0,0.00030142,5]
[341382532,1730862640243,-1000.0,0.00030142,5]
[341382533,1730862640252,-1000.0,0.00030142,2]
[341382534,1730862640262,-503.96801302,0.00030142,5]
[341382535,1730862640276,-514.85352787,0.00030142,5]
[341382536,1730862640286,-3759.46760488,0.00030499,2]
[341382537,1730862640296,-587.0,0.00030565,2]
[341382538,1730862640306,-397.37063195,0.00030659,5]
[341382539,1730862640316,-1000.0,0.00030659,5]
[341382540,1730862640326,-500.0,0.00030659,5]
[341382541,1730862640336,-1007.5564034,0.00030659,2]
[341382542,1730862640346,-385.04086339,0.00030755,2]
[341382543,1730862640356,-200.0,0.000309,120]
[341382544,1730862640366,-197.138,0.00030926,2]
[341382545,1730862640376,-385.04086339,0.00031473,2]
[341382546,1730862640385,-23834.57751849,0.00031571,2]
[341382841,1730862643746,-737.77,0.00022053,2]
[341382842,1730862643758,-431.50083333,0.00022053,2]
[341382843,1730862643768,-500.0,0.00028773,5]
[341382844,1730862643780,-500.0,0.00028773,5]
[341382845,1730862643790,-1000.0,0.00030142,5]
[341382846,1730862643801,-500.0,0.00030142,5]
[341382847,1730862643810,-233.12954221,0.00031571,2]
[341382848,1730862643825,-832.2929393,0.00031571,2]
[341382849,1730862643835,-500.0,0.00031573,5]
[341382850,1730862643846,-263.46099615,0.00031573,5]
[341382851,1730862643855,-523.7341606,0.00031582,2]
[341382852,1730862643866,-587.0,0.00031592,2]
[341382853,1730862643875,-281.3561632,0.00031945,120]
[341382854,1730862643911,-240.05554251,0.00031945,120]
[341382856,1730862643920,-455.08,0.00032,2]
[341382858,1730862643930,-3759.46760488,0.00032399,2]
[341382859,1730862643940,-232.87149401,0.00032647,5]
[341382860,1730862643949,-1500.0,0.00032647,5]
[341382861,1730862643959,-1000.0,0.00032647,5]
[341382863,1730862643969,-1500.0,0.00032647,2]
[341382865,1730862643978,-1500.0,0.00032647,5]
[341382867,1730862643988,-200.0,0.000327,120]
[341382869,1730862643998,-150.5,0.0003285,120]
[341382871,1730862644007,-150.5,0.0003286,120]
[341382873,1730862644017,-201.66,0.0003286,120]
[341382875,1730862644037,-150.5,0.0003287,120]
[341382877,1730862644047,-150.5,0.0003287,120]
[341382878,1730862644056,-500.0,0.00032876,7]
[341382879,1730862644065,-541.090552,0.00032877,120]
[341382880,1730862644075,-165.0,0.00033,2]
[341382881,1730862644085,-823.0,0.00033074,2]
[341382882,1730862644094,-189.06117,0.00033115,2]
[341382883,1730862644104,-151.0,0.00033342,120]
[341382884,1730862644113,-500.0,0.00033698,10]
[341382885,1730862644124,-151.0,0.00033753,120]
[341382886,1730862644134,-201.02604,0.0003385,2]
[341382887,1730862644144,-455.08,0.00034,2]
[341382888,1730862644155,-201.02604,0.00034019,2]
[341382889,1730862644164,-170.328,0.00034072,37]
[341382890,1730862644174,-693.42597738,0.0003422,2]
[341382891,1730862644185,-155.0,0.00034261,30]
[341382892,1730862644194,-254.39795515,0.00034261,30]
[341382893,1730862644205,-3759.46760488,0.00034299,2]
[341382894,1730862644215,-350.77329,0.000345,120]
[341382895,1730862644224,-500.0,0.0003452,13]
[341382896,1730862644234,-823.0,0.00034751,2]
[341382897,1730862644244,-500.0,0.00035342,16]
[341382898,1730862644254,-500.0,0.00035525,5]
[341382899,1730862644263,-170.46530863,0.00035616,5]
[341382900,1730862644280,-584.19602122,0.00035729,10]
[341382901,1730862644289,-1152.0,0.0003579,2]
[341382902,1730862644299,-2000.0,0.00035891,5]
[341382903,1730862644309,-2000.0,0.00035891,2]
[341382904,1730862644319,-2000.0,0.00035891,5]
[341382905,1730862644329,-183.22691044,0.00036,30]
[341382906,1730862644338,-455.08,0.00036,2]
[341382907,1730862644348,-500.0,0.00036164,19]
[341382908,1730862644358,-3759.46760488,0.000362,2]
[341382909,1730862644368,-151.0,0.00036646,14]
[341382910,1730862644379,-151.0,0.00036685,120]
[341382911,1730862644389,-173.076,0.00036761,2]
[341382912,1730862644399,-514.1334172,0.00036895,5]
[341382913,1730862644409,-500.0,0.00036986,22]
[341382914,1730862644418,-502.0,0.00037278,7]
[341382915,1730862644428,-151.0,0.00037507,120]
[341382916,1730862644438,-500.0,0.00037808,25]
[341382917,1730862644448,-200.0,0.00038,60]
[341382918,1730862644457,-200.0,0.00038,60]
[341382919,1730862644466,-180.0,0.00038,30]
[341382920,1730862644475,-3759.46760488,0.000381,2]
[341382921,1730862644485,-500.90577611,0.00038173,5]
[341382922,1730862644494,-173.99180906,0.00038173,5]
[341382923,1730862644503,-500.0,0.00038173,5]
[341382924,1730862644513,-500.0,0.00038173,5]
[341382925,1730862644527,-500.66367522,0.00038173,5]
[341382926,1730862644536,-500.0,0.00038173,5]
[341382927,1730862644546,-501.9917397,0.00038173,5]
[341382928,1730862644556,-500.0,0.00038173,5]
[341382929,1730862644565,-500.0,0.00038173,5]
[341382930,1730862644575,-500.0,0.00038173,5]
[341382931,1730862644584,-500.0,0.00038173,5]
[341382932,1730862644593,-214.74124282,0.00038199,120]
[341382933,1730862644603,-23492.08391048,0.000382,109]
[341382934,1730862644612,-23492.08391047,0.000382,109]
[341382935,1730862644621,-23492.08391047,0.000382,109]
[341382936,1730862644631,-23492.08391047,0.000382,109]
[341382937,1730862644640,-1152.0,0.00038226,2]
[341382938,1730862644649,-725.01353973,0.00038256,2]
[341382939,1730862644659,-495.98734459,0.00038355,2]
[341382940,1730862644668,-1562.67,0.00038355,120]
[341382947,1730862644736,-501.16784294,0.00038356,14]
[341382949,1730862644753,-511.73413535,0.00038356,14]
[341382951,1730862644763,-500.0,0.00038356,14]
[341382953,1730862644775,-502.86083641,0.00038356,14]
[341382955,1730862644784,-500.0,0.00038356,14]
[341382957,1730862644794,-510.43575911,0.00038356,14]
[341382959,1730862644803,-500.0,0.00038356,14]
[341382961,1730862644812,-505.73837133,0.00038356,14]
[341382963,1730862644824,-503.10534214,0.00038356,14]
[341382965,1730862644834,-507.6924612,0.00038356,14]
[341382967,1730862644843,-500.0,0.00038356,14]
[341382969,1730862644852,-500.0,0.00038356,14]
[341382971,1730862644862,-500.0,0.00038356,10]
[341382973,1730862644872,-246.16443954,0.00038356,14]
[341382975,1730862644882,-500.0,0.00038356,14]
[341382977,1730862644891,-500.0,0.00038356,14]
[341382979,1730862644902,-500.0,0.00038356,14]
[341382981,1730862644913,-1000.0,0.00038356,30]
[341382983,1730862644922,-503.93159235,0.00038356,14]
[341382985,1730862644933,-500.0,0.00038356,14]
[341382986,1730862644942,-507.95820258,0.00038356,14]
[341382988,1730862644951,-503.00241167,0.00038356,14]
[341382990,1730862644961,-504.28752548,0.00038356,14]
[341382992,1730862644971,-500.0,0.00038356,14]
[341382994,1730862644980,-500.0,0.00038356,14]
[341382996,1730862644990,-500.0,0.00038356,14]
[341382998,1730862644999,-501.57500681,0.00038356,14]
[341383000,1730862645008,-500.0,0.00038356,14]
[341383002,1730862645023,-500.0,0.00038356,14]
[341383004,1730862645034,-508.57678009,0.00038356,14]
[341383006,1730862645043,-501.87522203,0.00038356,14]
[341383008,1730862645054,-292.92979674,0.00038356,14]
[341383010,1730862645064,-500.0,0.00038356,14]
[341383012,1730862645073,-500.0,0.00038356,14]
[341383014,1730862645083,-500.0,0.00038356,14]
[341383016,1730862645092,-502.85535975,0.00038356,7]
[341383018,1730862645102,-500.0,0.00038356,14]
[341383020,1730862645111,-512.84725117,0.00038356,14]
[341383022,1730862645120,-513.76803958,0.00038356,14]
[341383024,1730862645130,-512.02193098,0.00038356,14]
[341383026,1730862645140,-500.0,0.00038356,14]
[341383028,1730862645150,-500.0,0.00038356,14]
[341383030,1730862645159,-500.0,0.00038356,14]
[341383032,1730862645169,-500.0,0.00038356,14]
[341383034,1730862645179,-502.334047,0.00038356,14]
[341383036,1730862645189,-500.0,0.00038356,14]
[341383038,1730862645199,-500.0,0.00038356,14]
[341383040,1730862645208,-505.41906881,0.00038356,14]
[341383041,1730862645218,-160.90119693,0.00038356,14]
[341383043,1730862645228,-500.0,0.00038356,14]
[341383045,1730862645237,-500.0,0.00038356,14]
[341383047,1730862645247,-500.0,0.00038356,14]
[341383049,1730862645257,-500.0,0.00038356,14]
[341383051,1730862645266,-500.0,0.00038356,14]
[341383053,1730862645279,-500.0,0.00038356,14]
[341383055,1730862645290,-1006.08853825,0.00038356,5]
[341383057,1730862645300,-500.0,0.00038356,14]
[341383059,1730862645310,-269.03531734,0.00038356,2]
[341383061,1730862645321,-500.0,0.00038356,14]
[341383063,1730862645331,-508.05801133,0.00038356,14]
[341383065,1730862645341,-500.0,0.00038356,14]
[341383067,1730862645352,-500.0,0.00038356,2]
[341383069,1730862645362,-509.64555733,0.00038356,14]
[341383071,1730862645372,-509.43836124,0.00038356,14]
[341383072,1730862645382,-194.65301787,0.00038356,14]
[341383074,1730862645393,-500.0,0.00038356,14]
[341383076,1730862645403,-500.0,0.00038356,14]
[341383078,1730862645413,-500.0,0.00038356,14]
[341383080,1730862645424,-501.56857057,0.00038356,14]
[341383082,1730862645434,-505.35823042,0.00038356,14]
[341383083,1730862645445,-237.5872132,0.00038356,14]
[341383085,1730862645455,-500.0,0.00038356,14]
[341383087,1730862645465,-500.0,0.00038356,14]
[341383089,1730862645475,-500.0,0.00038356,14]
[341383091,1730862645484,-500.0,0.00038356,14]
[341383093,1730862645495,-500.0,0.00038356,14]
[341383095,1730862645506,-500.0,0.00038356,14]
[341383097,1730862645516,-500.0,0.00038356,14]
[341383099,1730862645530,-511.50323428,0.00038356,14]
[341383101,1730862645540,-512.11714021,0.00038356,14]
[341383103,1730862645550,-500.0,0.00038356,14]
[341383105,1730862645559,-507.08131074,0.00038356,14]
[341383107,1730862645569,-500.0,0.00038356,14]
[341383109,1730862645579,-500.0,0.00038356,14]
[341383111,1730862645589,-500.0,0.00038356,14]
[341383113,1730862645598,-500.0,0.00038356,14]
[341383115,1730862645608,-500.0,0.00038356,14]
[341383117,1730862645620,-500.0,0.00038356,14]
[341383119,1730862645630,-500.0,0.00038356,14]
[341383121,1730862645640,-500.0,0.00038356,14]
[341383123,1730862645650,-500.0,0.00038356,14]
[341383124,1730862645660,-200.0,0.00038356,7]
[341383126,1730862645670,-500.0,0.00038356,14]
[341383128,1730862645680,-503.86920275,0.00038356,14]
[341383130,1730862645690,-505.70038605,0.00038356,14]
[341383132,1730862645700,-528.63880998,0.00038356,14]
[341383134,1730862645712,-500.0,0.00038356,14]
[341383136,1730862645722,-500.0,0.00038356,14]
[341383138,1730862645732,-500.0,0.00038356,14]
[341383140,1730862645742,-500.0,0.00038356,14]
[341383142,1730862645753,-507.06024906,0.00038356,14]
[341383144,1730862645764,-404.54251095,0.00038356,14]
[341383147,1730862645779,-504.2219945,0.00038356,14]
[341383149,1730862645789,-503.07145176,0.00038356,14]
[341383152,1730862645801,-509.170581,0.00038356,14]
[341383154,1730862645811,-374.17265625,0.00038356,14]
[341383155,1730862645821,-500.0,0.00038356,14]
[341383157,1730862645832,-500.0,0.00038356,14]
[341383159,1730862645842,-502.06194082,0.00038356,14]
[341383161,1730862645852,-1000.0,0.00038356,116]
[341383163,1730862645863,-500.0,0.00038356,14]
[341383165,1730862645873,-500.0,0.00038356,14]
[341383167,1730862645884,-509.1314883,0.00038356,14]
[341383169,1730862645894,-500.0,0.00038356,14]
[341383171,1730862645906,-500.0,0.00038356,14]
[341383173,1730862645917,-500.0,0.00038356,14]
[341383175,1730862645927,-500.0,0.00038356,14]
[341383177,1730862645937,-513.72956722,0.00038356,14]
[341383179,1730862645946,-500.0,0.00038356,14]
[341383181,1730862645956,-506.91529399,0.00038356,14]
[341383183,1730862645966,-500.0,0.00038356,14]
[341383185,1730862645975,-510.9480427,0.00038356,14]
[341383188,1730862645985,-500.0,0.00038356,14]
[341383191,1730862645995,-500.0,0.00038356,14]
[341383193,1730862646004,-500.0,0.00038356,14]
[341383196,1730862646014,-500.0,0.00038356,14]
[341383199,1730862646027,-500.0,0.00038356,14]
[341383201,1730862646038,-456.1453166,0.00038356,14]
[341383203,1730862646047,-157.47988388,0.00038356,14]
[341383205,1730862646057,-509.23428565,0.00038356,14]
[341383207,1730862646067,-500.0,0.00038356,14]
[341383209,1730862646077,-500.0,0.00038356,14]
[341383212,1730862646087,-500.0,0.00038356,14]
[341383215,1730862646098,-500.0,0.00038356,14]
[341383217,1730862646108,-500.0,0.00038356,14]
[341383219,1730862646117,-419.01290875,0.00038356,14]
[341383221,1730862646126,-500.0,0.00038356,14]
[341383223,1730862646135,-507.01064284,0.00038356,14]
[341383224,1730862646144,-500.0,0.00038356,14]
[341383226,1730862646154,-500.0,0.00038356,14]
[341383228,1730862646163,-319.46078816,0.00038356,14]
[341383230,1730862646173,-500.0,0.00038356,14]
[341383232,1730862646182,-500.0,0.00038356,14]
[341383234,1730862646192,-500.0,0.00038356,14]
[341383236,1730862646201,-500.0,0.00038356,14]
[341383238,1730862646211,-508.595833,0.00038356,14]
[341383239,1730862646221,-500.0,0.00038356,14]
[341383241,1730862646230,-500.0,0.00038356,14]
[341383243,1730862646240,-517.86835852,0.00038356,14]